[Event "CCT Airthings Masters Play-In 2023"]
[Site "Online"]
[Date "2023.02.03"]
[Round "2"]
[White "BilodeauA"]
[Black "Iskusnyh, Sergei"]
[Result "1-0"]
[ECO "C07"]
[WhiteElo "2609"]
[BlackElo "2443"]
[Annotator "TA"]
[PlyCount "75"]
[EventDate "2023.02.03"]
[EventType "swiss"]
[EventCountry "NET"]
[SourceTitle "playchess.com"]
[Source "ChessBase"]
[SourceQuality "1"]
[TimeControl "600+2"]

{[%evp 9,75,17,17,13,16,6,21,15,17,0,0,0,0,0,0,0,0,0,20,0,0,0,17,0,62,50,64,47,50,-8,0,0,14,-41,-30,-50,-47,-49,-39,-19,-23,-92,0,-90,-43,-37,0,0,-4,-3,-3,-4,146,120,363,40,44,44,45,43,38,37,148,162,162,166,133,121]} 1. e4 {[%emt 0:00:24]} e6 {[%emt 0:00:04]} 2. d4 {[%emt 0:00:06]} d5 {[%emt 0:00:01]} 3. Nd2 {[%emt 0:00:01]} c5 {[%emt 0:00:03]} 4. exd5 {[%emt 0:00:07]} Qxd5 {[%emt 0:00:02]} 5. dxc5 {[%emt 0:00:05]} Nf6 {[%emt 0:00:04]} 6. Ngf3 {[%emt 0:00:02] C07: French Tarrasch: 3...c5, 4 Ngf3 and 4 exd5 Qxd5.} Qxc5 {[%emt 0:00:02]} 7. Bd3 {[%emt 0:00:04]} Nbd7 {[%emt 0:00:02]} 8. O-O {[%emt 0:00:02] The position is equal.} Qc7 {[%emt 0:00:02]} 9. a4 {[%emt 0:00:01]} Nc5 {[%emt 0:00:43]} 10. Bc4 {[%emt 0:00:07]} Be7 {[%emt 0:00:11]} 11. a5 {[%emt 0:00:23]} O-O {[%emt 0:00:06]} 12. Qe2 {[%emt 0:00:02]} Bd7 {[%emt 0:00:10]} 13. Ne5 {[%emt 0:00:04] [#]} Rad8 $146 {[%emt 0:01:41]} ({Predecessor:} 13... Rac8 14. Ndf3 Rfd8 15. Nxd7 Ncxd7 16. b3 h6 17. Bb2 Bb4 18. a6 bxa6 19. Rxa6 Bc5 {1-0 Alekseenko,K (2696)-Indjic,A (2618) Titled Tuesday intern op 01st Sept blitz 2020 (9)}) 14. Nxd7 {[%emt 0:00:06]} Ncxd7 {[%emt 0:00:50]} 15. Nf3 {[%emt 0:00:24]} Bd6 {[%emt 0:01:12]} 16. c3 {[%emt 0:00:34]} Bf4 {[%emt 0:00:25]} (16... e5 $11) 17. Bxf4 $14 {[%emt 0:00:49]} Qxf4 {[%emt 0:00:01]} 18. g3 {[%emt 0:00:03]} (18. a6 $5 {[%cal Ra6b7]}) 18... Qc7 {[%emt 0:00:12]} 19. Bd3 {[%emt 0:00:09]} (19. a6 $1 $14) 19... g6 {[%emt 0:00:42]} 20. Bc2 {[%emt 0:00:12]} Nb8 {[%emt 0:00:23]} 21. h4 {[%emt 0:00:39]} (21. Rfd1 $11) 21... Rd5 $15 {[%emt 0:00:12]} 22. Ng5 {[%emt 0:00:31]} Rxa5 {[%emt 0:00:20]} 23. Rxa5 {[%emt 0:00:14]} Qxa5 {[%emt 0:00:02]} 24. Qf3 {[%emt 0:00:00][%csl LRb7,LRf6]} Nbd7 {[%emt 0:00:08][%cal Bb8d7,Bd7c5,Bc5e4][%mdl 32]} 25. Rd1 {[%emt 0:00:23]} (25. Qxb7 $11 {remains equal.} Rb8 {[%mdl 64] Deflection} 26. Qf3) 25... Qc7 {[%emt 0:00:26]} (25... Qb5 $17 26. b3 a5) 26. Bb3 {[%emt 0:00:03]} (26. Ba4 $1 $11) 26... Qc6 {[%emt 0:00:23]} (26... h6 $17 27. Ne4 Nxe4 28. Qxe4 Nc5) 27. Qf4 {[%emt 0:00:47]} Qb6 {[%emt 0:00:11]} 28. Ba4 {[%emt 0:00:16]} Nh5 {[%emt 0:00:47]} 29. Qf3 {[%emt 0:00:10]} Nc5 {[%emt 0:00:17]} 30. Be8 {[%emt 0:01:43][%mdl 64] [#] Decoy} Qc7 {[%emt 0:00:34]} (30... Rxe8 $2 31. Qxf7+ Kh8 32. Qxh7#) (30... Qxb2 $2 31. Bxf7+ Kh8 32. Qe3 $18 (32. Nxe6 $2 Nxe6 {[%mdl 64] Pin} 33. Rd7 Nc5 $19)) (30... f6 $11 31. Bf7+ Kh8) 31. Bxf7+ $16 {[%emt 0:00:39]} Rxf7 $2 {[%emt 0:00:15]} (31... Kg7 $16) 32. Qxf7+ $2 {[%emt 0:00:15]} ({White must play} 32. Rd8+ $1 $18 Kg7 33. Rc8 {[%mdl 64] Skewer} (33. Qxf7+ Qxf7 34. Nxf7 Kxf7 $16) 33... Qxg3+ 34. Qxg3 Nxg3 35. fxg3) 32... Qxf7 $14 {[%emt 0:00:02]} 33. Nxf7 {[%emt 0:00:00]} Kxf7 {[%emt 0:00:00]} 34. b4 {[%emt 0:00:01]} Ne4 {[%emt 0:00:14][%cal Oh5f6]} 35. Rd7+ {[%emt 0:00:01]} Kg8 {[%emt 0:00:06] [#]} (35... Ke8 $1 $14 36. Rxb7 (36. Rxh7 Nd6 $11) 36... Nhf6) 36. c4 $1 $16 {[%emt 0:00:09] White is clearly better.} ({Don't do} 36. Rxb7 $6 Nxc3 37. Rxa7 Nf6 $14) 36... b6 {[%emt 0:00:06]} 37. Rxa7 {[%emt 0:00:09]} Nhf6 {[%emt 0:00:06]} 38. Re7 {[%emt 0:00:14] Weighted Error Value: White=0.29 (precise) /Black=0.30} 1-0

[Event "CCT Airthings Masters Play-In 2023"]
[Site "Online"]
[Date "2023.02.03"]
[Round "2"]
[White "Fier, Alexandr"]
[Black "chesspanda123"]
[Result "0-1"]
[ECO "E46"]
[WhiteElo "2606"]
[BlackElo "2613"]
[Annotator "NA"]
[PlyCount "74"]
[EventDate "2023.02.03"]
[EventType "swiss"]
[EventCountry "NET"]
[SourceTitle "playchess.com"]
[Source "ChessBase"]
[SourceQuality "1"]
[TimeControl "600+2"]

1. d4 {[%emt 0:00:03]} Nf6 {[%emt 0:00:04]} 2. c4 {[%emt 0:00:02]} e6 {[%emt 0:00:01]} 3. Nc3 {[%emt 0:00:01]} Bb4 {[%emt 0:00:10]} 4. e3 {[%emt 0:00:02]} O-O {[%emt 0:00:02]} 5. Nge2 {[%emt 0:00:01]} Re8 {[%emt 0:00:01]} 6. a3 {[%emt 0:00:02]} Bf8 {[%emt 0:00:02]} 7. Ng3 {[%emt 0:00:01]} d5 {[%emt 0:00:01]} 8. Be2 {[%emt 0:00:00]} b6 {[%emt 0:00:05]} 9. O-O {[%emt 0:00:02]} Bb7 {[%emt 0:00:12]} 10. cxd5 {[%emt 0:00:12]} exd5 {[%emt 0:00:07]} 11. b4 {[%emt 0:00:02]} c6 {[%emt 0:00:16]} 12. Rb1 {[%emt 0:00:05]} Nbd7 {[%emt 0:00:09]} 13. Bf3 {[%emt 0:00:10]} a5 {[%emt 0:00:48]} 14. b5 {[%emt 0:00:06]} c5 {[%emt 0:00:06]} 15. Nge2 {[%emt 0:00:41]} Rc8 {[%emt 0:00:20]} 16. dxc5 {[%emt 0:00:14]} Nxc5 {[%emt 0:00:15]} 17. Nd4 {[%emt 0:00:18]} Nce4 {[%emt 0:00:09]} 18. Na4 {[%emt 0:00:14]} Nd6 {[%emt 0:01:15]} 19. Qb3 {[%emt 0:00:21]} Nc4 {[%emt 0:00:11]} 20. Rd1 {[%emt 0:00:03]} Ne4 {[%emt 0:00:09]} 21. Ne2 {[%emt 0:01:07]} Qh4 {[%emt 0:00:29]} 22. Ng3 {[%emt 0:00:05]} Bd6 {[%emt 0:00:55]} 23. Bxe4 {[%emt 0:00:07]} Rxe4 {[%emt 0:00:07]} 24. Nxe4 {[%emt 0:00:55]} Qxh2+ {[%emt 0:00:38]} 25. Kf1 {[%emt 0:00:01]} dxe4 {[%emt 0:00:03]} 26. Nb2 {[%emt 0:00:08]} Nxa3 {[%emt 0:00:52]} 27. Ra1 {[%emt 0:00:08]} Qh1+ {[%emt 0:00:36]} 28. Ke2 {[%emt 0:00:01]} Qh5+ {[%emt 0:00:00]} 29. Kf1 {[%emt 0:00:08]} Nc2 {[%emt 0:00:23]} 30. Ra4 {[%emt 0:00:19]} Qh1+ {[%emt 0:00:13]} 31. Ke2 {[%emt 0:00:03]} Qh5+ {[%emt 0:00:19]} 32. Kf1 {[%emt 0:00:00]} Bb4 {[%emt 0:00:12]} 33. Kg1 {[%emt 0:00:11]} Qxb5 {[%emt 0:00:34]} 34. Ra2 {[%emt 0:01:09]} h6 {[%emt 0:00:16]} 35. Qa4 {[%emt 0:00:39]} Ba6 {[%emt 0:00:21]} 36. Qb3 {[%emt 0:00:26]} Ne1 {[%emt 0:00:05]} 37. Kh2 {[%emt 0:01:11]} Bd6+ {[%emt 0:00:10]} 0-1

[Event "CCT Airthings Masters Play-In 2023"]
[Site "Online"]
[Date "2023.02.03"]
[Round "2"]
[White "Shield12"]
[Black "aquarium76"]
[Result "1-0"]
[ECO "C65"]
[WhiteElo "2604"]
[BlackElo "2400"]
[Annotator "NA"]
[PlyCount "109"]
[EventDate "2023.02.03"]
[EventType "swiss"]
[EventCountry "NET"]
[SourceTitle "playchess.com"]
[Source "ChessBase"]
[SourceQuality "1"]
[TimeControl "600+2"]

1. e4 {[%emt 0:00:03]} e5 {[%emt 0:00:07]} 2. Nf3 {[%emt 0:00:01]} Nc6 {[%emt 0:00:01]} 3. Bb5 {[%emt 0:00:01]} Nf6 {[%emt 0:00:11]} 4. d3 {[%emt 0:00:07]} Bc5 {[%emt 0:00:22]} 5. Bg5 {[%emt 0:00:03]} h6 {[%emt 0:00:19]} 6. Bh4 {[%emt 0:00:01]} Nd4 {[%emt 0:00:03]} 7. Nxd4 {[%emt 0:00:02]} Bxd4 {[%emt 0:00:00]} 8. c3 {[%emt 0:00:00]} Bb6 {[%emt 0:00:02]} 9. Nd2 {[%emt 0:00:01]} c6 {[%emt 0:00:08]} 10. Ba4 {[%emt 0:00:01]} d6 {[%emt 0:00:10]} 11. Nc4 {[%emt 0:00:02]} Bc7 {[%emt 0:00:26]} 12. Ne3 {[%emt 0:00:01]} Be6 {[%emt 0:00:45]} 13. Bb3 {[%emt 0:00:03]} g5 {[%emt 0:00:12]} 14. Bg3 {[%emt 0:00:02]} Qe7 {[%emt 0:00:02]} 15. h4 {[%emt 0:00:05]} O-O-O {[%emt 0:00:01]} 16. Qe2 {[%emt 0:00:34]} d5 {[%emt 0:00:09]} 17. exd5 {[%emt 0:00:31]} Nxd5 {[%emt 0:00:43]} 18. Bxd5 {[%emt 0:01:50]} cxd5 {[%emt 0:00:19]} 19. d4 {[%emt 0:00:11]} e4 {[%emt 0:03:05]} 20. Bxc7 {[%emt 0:00:04]} Qxc7 {[%emt 0:00:04]} 21. g4 {[%emt 0:00:06]} Qf4 {[%emt 0:00:20]} 22. O-O-O {[%emt 0:00:03]} h5 {[%emt 0:00:09]} 23. gxh5 {[%emt 0:00:39]} gxh4 {[%emt 0:00:01]} 24. Kb1 {[%emt 0:00:01]} h3 {[%emt 0:00:05]} 25. c4 {[%emt 0:00:06]} dxc4 {[%emt 0:00:08]} 26. d5 {[%emt 0:00:01]} Bd7 {[%emt 0:00:05]} 27. Rd4 {[%emt 0:01:39]} Kb8 {[%emt 0:00:09]} 28. Nxc4 {[%emt 0:00:00]} Bg4 {[%emt 0:00:11]} 29. Qe3 {[%emt 0:00:05]} Qxe3 {[%emt 0:00:45]} 30. Nxe3 {[%emt 0:00:00]} Bc8 {[%emt 0:00:06]} 31. Rxe4 {[%emt 0:00:11]} Rxh5 {[%emt 0:00:01]} 32. Rh2 {[%emt 0:00:01]} Rg5 {[%emt 0:00:37]} 33. Kc2 {[%emt 0:00:13]} Rdg8 {[%emt 0:00:07]} 34. Rf4 {[%emt 0:00:25]} R8g7 {[%emt 0:00:34]} 35. Kd3 {[%emt 0:00:11]} Rg2 {[%emt 0:00:08]} 36. Rh1 {[%emt 0:00:01]} Rg1 {[%emt 0:00:01]} 37. Rxg1 {[%emt 0:00:05]} Rxg1 {[%emt 0:00:01]} 38. Rh4 {[%emt 0:00:01]} Kc7 {[%emt 0:00:02]} 39. f4 {[%emt 0:00:17]} Rg2 {[%emt 0:00:12]} 40. f5 {[%emt 0:00:04]} Rxb2 {[%emt 0:00:07]} 41. Rxh3 {[%emt 0:00:02]} Rxa2 {[%emt 0:00:03]} 42. Rh7 {[%emt 0:00:01]} Kd6 {[%emt 0:00:02]} 43. Rxf7 {[%emt 0:00:02]} Ke5 {[%emt 0:00:02]} 44. f6 {[%emt 0:00:38]} Ra3+ {[%emt 0:00:06]} 45. Ke2 {[%emt 0:00:03]} Ra6 {[%emt 0:00:08]} 46. Rc7 {[%emt 0:00:09]} Bh3 {[%emt 0:00:04]} 47. Rh7 {[%emt 0:00:31]} Bf5 {[%emt 0:00:06]} 48. Rh5 {[%emt 0:00:07]} Kxf6 {[%emt 0:00:06]} 49. Rxf5+ {[%emt 0:00:04]} Ke7 {[%emt 0:00:00]} 50. Kd3 {[%emt 0:00:02]} Ra4 {[%emt 0:00:01]} 51. Rh5 {[%emt 0:00:12]} b5 {[%emt 0:00:01]} 52. Nf5+ {[%emt 0:00:03]} Kf6 {[%emt 0:00:02]} 53. Nd4 {[%emt 0:00:06]} b4 {[%emt 0:00:01]} 54. d6 {[%emt 0:00:09]} b3 {[%emt 0:00:01]} 55. d7 {[%emt 0:00:11]} 1-0

[Event "CCT Airthings Masters Play-In 2023"]
[Site "Online"]
[Date "2023.02.03"]
[Round "2"]
[White "TigrVShlyape"]
[Black "adotand"]
[Result "1/2-1/2"]
[ECO "D02"]
[WhiteElo "2602"]
[BlackElo "2376"]
[Annotator "TA"]
[PlyCount "93"]
[EventDate "2023.02.03"]
[EventType "swiss"]
[EventCountry "NET"]
[SourceTitle "playchess.com"]
[Source "ChessBase"]
[SourceQuality "1"]
[TimeControl "600+2"]

{[%evp 11,93,0,0,0,0,0,15,11,26,12,20,-20,3,5,36,14,46,25,57,14,53,48,79,88,107,44,37,41,29,10,56,34,45,0,0,0,0,0,0,0,0,0,12,-9,0,0,0,0,0,0,0,-8,0,-31,-33,-35,0,0,0,0,0,0,0,-10,0,0,0,0,0,0,0,0,0,0,0,0,0,0,0,0,0,0,0,0]} 1. d4 {[%emt 0:00:05]} Nf6 {[%emt 0:00:06]} 2. Bf4 {[%emt 0:00:09]} e6 {[%emt 0:00:05]} 3. e3 {[%emt 0:00:02]} d5 {[%emt 0:00:01]} 4. Nf3 {[%emt 0:00:17]} c5 {[%emt 0:00:17]} 5. c3 {[%emt 0:00:02]} Nc6 {[%emt 0:00:01]} 6. Nbd2 {[%emt 0:00:04]} Nh5 {[%emt 0:00:46]} 7. Bg5 {[%emt 0:00:07] D02: 1 d4 d5 2 Nf3 sidelines, including 2...Nf6 3 g3 and 2...Nf6 3 Bf4.} f6 {[%emt 0:00:57]} 8. Bh4 {[%emt 0:00:03][%cal Of3e5]} g6 {[%emt 0:00:00]} 9. Bd3 {[%emt 0:02:02] The main line 9.Bd3 scores better than 9.Be2.} cxd4 {[%emt 0:00:06]} 10. cxd4 {[%emt 0:00:07][%cal Of3e5]} Be7 {[%emt 0:00:14]} 11. a3 {[%emt 0:00:08]} O-O {[%emt 0:00:30]} (11... e5 $5 {[%cal Re5e4]}) 12. O-O {[%emt 0:00:05] [#]} Ng7 $146 {[%emt 0:00:31]} ({Predecessor:} 12... Kh8 13. Rc1 e5 14. dxe5 fxe5 15. Bxe7 Qxe7 16. Bb5 Bd7 17. Nb3 a6 18. Be2 Rad8 {0-1 Ayyad,M (2101)-Kaloust,G (1942) Olympiad-44 Chennai 2022 (9.1)}) 13. Bg3 {[%emt 0:00:04]} Bd6 {[%emt 0:00:04]} 14. b4 {[%emt 0:00:07]} a6 {[%emt 0:00:02]} 15. Nb3 {[%emt 0:00:07]} Bxg3 {[%emt 0:00:11]} 16. hxg3 {[%emt 0:00:02]} e5 {[%emt 0:00:13]} 17. dxe5 {[%emt 0:00:42]} fxe5 {[%emt 0:00:02][%cal Bf6e5,Be5e4][%mdl 32] [#] ...e4 would be deadly.} 18. Be2 {[%emt 0:00:02]} ({White should try} 18. e4 $16) 18... e4 $14 {[%emt 0:00:31]} 19. Nfd4 {[%emt 0:00:05]} Ne5 {[%emt 0:00:01]} 20. Rc1 {[%emt 0:00:39]} h5 {[%emt 0:00:02]} (20... Rf7 $11) 21. Rc3 {[%emt 0:01:28]} Bg4 {[%emt 0:01:27]} 22. f3 {[%emt 0:00:39]} exf3 {[%emt 0:00:06]} 23. Nxf3 {[%emt 0:00:01]} Qd6 {[%emt 0:00:34]} 24. e4 {[%emt 0:00:12] Wards off Nf5} Nxf3+ {[%emt 0:00:28]} (24... Bxf3 {simplifies} 25. Bxf3 Nxf3+ 26. Rfxf3 Rxf3 27. Rxf3 Rd8) 25. Bxf3 {[%emt 0:00:03]} Qxg3 {[%emt 0:00:01]} 26. exd5 {[%emt 0:00:13]} Nf5 {[%emt 0:00:37][%cal Bg7f5,Bf5g3,Bg3e2][%mdl 32] [#] Hoping for ...Nh4.} 27. Qe1 {[%emt 0:01:06]} (27. d6 {is more complex.} Qxd6 28. Bxg4 hxg4 29. Qxg4 Rae8 30. Rcf3) 27... Rae8 {[%emt 0:00:14]} 28. Qxg3 {[%emt 0:00:10]} Nxg3 {[%emt 0:00:00]} 29. Rd1 {[%emt 0:00:07]} Ne2+ {[%emt 0:00:56]} 30. Bxe2 {[%emt 0:00:02]} Rxe2 {[%emt 0:00:00]} 31. Rf1 {[%emt 0:00:16] Inhibits Rff2.} Rd8 {[%emt 0:00:11]} 32. Nd4 {[%emt 0:00:43]} (32. Rc7 $5 {[%cal Rf1f7]}) 32... Re7 {[%emt 0:01:00][%cal Be2e7,Be7d7,Bd7d5][%mdl 32]} 33. Rc5 {[%emt 0:00:13]} b6 {[%emt 0:00:26]} 34. Nc6 {[%emt 0:00:13][%csl LRd8,LRe7] The position is equal.} Red7 {[%emt 0:00:00]} 35. Nxd8 {[%emt 0:00:14]} bxc5 $11 {[%emt 0:00:02][%mdl 4096] Endgame KRB-KRN} 36. Nc6 {[%emt 0:00:02]} cxb4 {[%emt 0:00:05]} 37. axb4 {[%emt 0:00:04]} Kg7 {[%emt 0:00:04]} (37... Rxd5 $2 38. Ne7+ Kg7 39. Nxd5 $18) 38. Ne5 {[%emt 0:00:08]} Rxd5 {[%emt 0:00:04]} 39. Nxg4 {[%emt 0:00:01]} hxg4 {[%emt 0:00:00] KR-KR} 40. Kh2 {[%emt 0:00:03]} Rd4 {[%emt 0:00:06]} 41. Ra1 {[%emt 0:00:02]} Rxb4 {[%emt 0:00:01]} 42. Rxa6 {[%emt 0:00:01]} Kh6 {[%emt 0:00:01]} 43. Kg3 {[%emt 0:00:04]} Kh5 {[%emt 0:00:02]} 44. Ra5+ {[%emt 0:00:02]} g5 {[%emt 0:00:01]} 45. Ra3 {[%emt 0:00:03]} Re4 {[%emt 0:00:01]} 46. Rb3 {[%emt 0:00:02]} Kg6 {[%emt 0:00:02]} 47. Ra3 {[%emt 0:00:02] Weighted Error Value: White=0.10 (very precise) /Black=0.08 (flawless)} 1/2-1/2

[Event "CCT Airthings Masters Play-In 2023"]
[Site "Online"]
[Date "2023.02.03"]
[Round "2"]
[White "vi_pranav"]
[Black "GasconJR"]
[Result "1/2-1/2"]
[ECO "B89"]
[WhiteElo "2600"]
[BlackElo "2373"]
[Annotator "TA"]
[PlyCount "130"]
[EventDate "2023.02.03"]
[EventType "swiss"]
[EventCountry "NET"]
[SourceTitle "playchess.com"]
[Source "ChessBase"]
[SourceQuality "1"]
[TimeControl "600+2"]

{[%evp 14,130,17,18,18,9,7,-29,-40,-35,-51,-64,-65,-56,-49,-54,-54,-108,-103,-92,-82,-203,-210,-209,-77,-190,-56,-62,-54,-58,-60,-110,-104,-109,-63,-70,-29,-112,-101,-115,95,89,81,116,88,88,183,30,35,34,31,31,48,5,24,0,31,8,19,19,19,19,52,60,113,113,113,113,114,114,122,127,377,328,328,158,185,54,54,54,6070,5606,5663,5498,2040,0,0,0,0,0,0,0,0,0,0,0,0,-8,-8,-8,0,0,0,-8,-8,-7,0,0,0,0,0,0,0,0,0,0,0,0,0]} 1. e4 {[%emt 0:00:04]} c5 {[%emt 0:00:05]} 2. Nf3 {[%emt 0:00:04]} d6 {[%emt 0:00:16]} 3. d4 {[%emt 0:00:02]} cxd4 {[%emt 0:00:01]} 4. Nxd4 {[%emt 0:00:00]} Nf6 {[%emt 0:00:02]} 5. Nc3 {[%emt 0:00:00]} Nc6 {[%emt 0:00:02]} 6. Bc4 {[%emt 0:00:11]} e6 {[%emt 0:00:01]} 7. Be3 {[%emt 0:00:02]} Bd7 {[%emt 0:00:01] 7...a6 is a critical line.} 8. Qe2 {[%emt 0:00:04]} Rc8 {[%emt 0:00:03] B89: Sicilian: Velimirovic Attack.} 9. O-O-O {[%emt 0:00:23]} Ne5 {[%emt 0:00:05]} 10. Bb3 {[%emt 0:00:23] [#]} Rxc3 $1 {[%emt 0:00:03] Black has an edge.} 11. bxc3 {[%emt 0:00:01] Black must now prevent Bg5.} Nxe4 {[%emt 0:00:01] A dynamic duo of knights.} 12. Bd2 {[%emt 0:00:24] [#]} d5 $146 {[%emt 0:00:05]} ({Predecessor:} 12... Nxd2 13. Rxd2 Qa5 14. Kb1 Be7 15. f4 Ng6 16. Qf3 O-O 17. Qxb7 Rd8 18. Rf1 Qxc3 {1-0 Borik,O (2395)-Ueter,H Bochum SG 31 op 5th 1979 (4)}) 13. f3 {[%emt 0:00:19]} Ba3+ {[%emt 0:00:07]} 14. Kb1 {[%emt 0:00:01]} Nxd2+ {[%emt 0:00:01]} 15. Qxd2 {[%emt 0:00:44]} ({Better is} 15. Rxd2 $15 Ng6 16. c4 (16. Bxd5 $2 Nf4 $19)) 15... O-O {[%emt 0:01:32]} 16. Rhe1 {[%emt 0:00:08]} Qc7 {[%emt 0:00:20][%mdl 1024] And now ...a5 would win. Black has strong compensation.} 17. f4 {[%emt 0:01:06]} (17. Qe3 $17 {was necessary.} Ng6 18. c4) 17... Ng4 $1 $19 {[%emt 0:00:18]} 18. f5 {[%emt 0:01:17][%cal Rf5e6] [#]} Nf2 {[%emt 0:00:27]} 19. f6 {[%emt 0:01:47] [#]} (19. Qxf2 $2 Qxc3 20. fxe6 Qb2#) (19. Nb5 $17 Bxb5 20. Qxf2) 19... Rc8 $1 {[%emt 0:02:19]} 20. Nxe6 $1 $15 {[%emt 0:00:09]} fxe6 {[%emt 0:00:07]} ({But not} 20... Bxe6 21. Qxf2 Qxc3 22. Qd4 $14 (22. Qxa7 $2 Qb2#)) 21. Qxf2 {[%emt 0:00:12]} Qxc3 {[%emt 0:00:10][%csl Ga3][%cal Rc3b2]} (21... Qxh2 $2 22. Rxd5 Be8 23. Ra5 $18) 22. f7+ {[%emt 0:00:10]} (22. Qd4 $15) 22... Kf8 $1 $17 {[%emt 0:00:05][%csl Ga3][%cal Rc3b2]} 23. Qd4 {[%emt 0:00:02]} Kxf7 {[%emt 0:00:39]} ({Black should play} 23... Qxd4 $17 24. Rxd4 b5) 24. Rf1+ {[%emt 0:00:14] White is weak on the dark squares} Kg8 {[%emt 0:00:02]} 25. Rf3 {[%emt 0:00:02]} (25. Qxc3 $1 $11 {keeps the balance.} Rxc3 26. Rd3) 25... Qxd4 {[%emt 0:00:08]} 26. Rxd4 {[%emt 0:00:00]} b5 $2 {[%emt 0:00:20] [#]} (26... Bc5 $1 $17 {[%cal Rc5d4] stays on course.} 27. Rd1 b5) 27. Rxd5 $16 {[%emt 0:00:27]} exd5 {[%emt 0:00:45]} 28. Bxd5+ {[%emt 0:00:01][%mdl 64] Discovered Attack} Kh8 {[%emt 0:00:01]} 29. Rxa3 {[%emt 0:00:01][%mdl 4096] Endgame KRB-KRB} Bf5 {[%emt 0:00:19]} (29... Rc7 $16) 30. Bb3 $2 {[%emt 0:00:29]} (30. Rxa7 $18 {Hoping for Ra8.} Bxc2+ 31. Kb2) 30... Rc7 {[%emt 0:00:12]} 31. Ra5 {[%emt 0:00:05]} Bd7 {[%emt 0:00:02]} 32. Kb2 {[%emt 0:00:09]} g6 {[%emt 0:00:43]} 33. Ra6 {[%emt 0:00:04]} Kg7 {[%emt 0:00:01]} 34. g3 {[%emt 0:00:02]} g5 {[%emt 0:00:06]} 35. c3 {[%emt 0:00:33]} h6 {[%emt 0:00:02]} 36. Bd5 {[%emt 0:00:01]} Be8 {[%emt 0:00:13]} 37. Kb3 {[%emt 0:00:12]} Re7 {[%emt 0:00:32]} 38. Kb4 {[%emt 0:00:06]} h5 {[%emt 0:00:11] [#]} (38... Rc7 $14) 39. Re6 $1 {[%emt 0:00:49] White is more active.} Rxe6 {[%emt 0:00:10]} 40. Bxe6 {[%emt 0:00:00] KB-KB} Kf6 {[%emt 0:00:00] [#] Against Bf5} 41. Bc8 {[%emt 0:00:01]} Ke5 {[%emt 0:00:39]} 42. Ba6 {[%emt 0:00:04]} Ke4 $2 {[%emt 0:00:03]} (42... Bf7 $16) 43. Bxb5 $18 {[%emt 0:00:05]} Bf7 {[%emt 0:00:01][%cal Oe4f3]} 44. Bc6+ {[%emt 0:00:14]} (44. c4 $18 {is the precise move to win.}) 44... Ke3 {[%emt 0:00:03][%cal Oe3f2]} 45. a4 {[%emt 0:00:03]} (45. c4 $18) 45... Kf2 $1 $14 {[%emt 0:00:01]} 46. c4 {[%emt 0:00:08][%cal Bc3c4,Bc4c5][%mdl 32]} g4 $2 {[%emt 0:00:06][%mdl 8192]} (46... Kg1 $14) 47. c5 {[%emt 0:00:03]} Kg1 {[%emt 0:00:01]} 48. Bd7 {[%emt 0:00:06]} Bd5 {[%emt 0:00:02]} 49. Be8 $2 {[%emt 0:00:01]} ({White has to play} 49. c6 $18 Kxh2 50. c7) 49... Kxh2 $11 {[%emt 0:00:01] aiming for ...h4. The position is equal.} 50. Bxh5 {[%emt 0:00:01]} Kxg3 {[%emt 0:00:00]} 51. Kb5 {[%emt 0:00:01]} Kf4 {[%emt 0:00:02] ( -> ...g3)} 52. Bxg4 {[%emt 0:00:01]} Kxg4 {[%emt 0:00:00] KB-KPP} 53. Ka6 {[%emt 0:00:00]} Kf5 {[%emt 0:00:03]} 54. Kxa7 {[%emt 0:00:02]} Ke6 {[%emt 0:00:00]} 55. Kb6 {[%emt 0:00:01]} Kd7 {[%emt 0:00:01]} 56. a5 {[%emt 0:00:00]} Ba8 {[%emt 0:00:01]} 57. Ka7 {[%emt 0:00:02]} Bc6 {[%emt 0:00:03]} 58. Kb6 {[%emt 0:00:00]} Bd5 {[%emt 0:00:00]} 59. a6 {[%emt 0:00:00]} Ba8 {[%emt 0:00:06]} 60. Ka7 {[%emt 0:00:01]} Bc6 {[%emt 0:00:01]} 61. Kb8 {[%emt 0:00:01]} Bd5 {[%emt 0:00:01]} 62. a7 {[%emt 0:00:00]} Bc6 {[%emt 0:00:01]} 63. a8=B {[%emt 0:00:04]} Bxa8 {[%emt 0:00:01]} 64. Kxa8 {[%emt 0:00:00] Kb7 would kill now.} Kc6 {[%emt 0:00:01]} 65. Ka7 {[%emt 0:00:00]} Kxc5 {[%emt 0:00:00] What a bad dream for Black. An interesting game.   Weighted Error Value: White=0.33/Black=0.26 (precise)} 1/2-1/2